fUSD/lending_fUSD_20240220
["ID","MTS","AMOUNT","RATE_DAILY","PERIOD"]
[314559809,1708422649283,-874.46,0.00035616,2]
[314559811,1708422649292,-500.0,0.00035616,2]
[314559813,1708422649301,-734.48,0.00035616,2]
[314559815,1708422649311,-500.0,0.00035616,2]
[314559817,1708422649319,-500.0,0.00035616,2]
[314559819,1708422649329,-500.0,0.00035616,2]
[314559821,1708422649338,-500.0,0.00035616,2]
[314559823,1708422649347,-500.0,0.00035616,2]
[314559825,1708422649358,-869.68,0.00035616,2]
[314559827,1708422649367,-500.0,0.00035616,2]
[314559829,1708422649376,-500.0,0.00035616,2]
[314559831,1708422649385,-350.5136542,0.00035616,2]
[314559833,1708422649394,-500.0,0.00035616,2]
[314559835,1708422649403,-504.88665465,0.00035616,2]
[314559836,1708422649412,-540.56,0.00035616,2]
[314559838,1708422649422,-528.68288759,0.00035616,2]
[314559840,1708422649431,-500.0,0.00035616,2]
[314559842,1708422649441,-500.0,0.00035616,2]
[314559844,1708422649450,-500.0,0.00035616,2]
[314559847,1708422649459,-152.0,0.00035634,7]
[314559848,1708422649468,-151.0212031,0.00035648,2]
[314559850,1708422649478,-150.0,0.00035671,2]
[314559852,1708422649487,-163.92,0.00035686,2]
[314559854,1708422649496,-154.23974412,0.0003569,2]
[314559856,1708422649505,-202.376581,0.00035694,3]
[314559858,1708422649514,-150.0,0.00035699,2]
[314559860,1708422649523,-188.19652486,0.000357,8]
[314559862,1708422649533,-2961.85812975,0.000357,8]
[314559864,1708422649542,-150.0,0.00035719,2]
[314559866,1708422649551,-200.0,0.00035733,2]
[314559868,1708422649561,-800.0,0.00035738,3]
[314559870,1708422649570,-151.0212031,0.00035748,2]
[314559872,1708422649580,-152.0,0.00035771,7]
[314559874,1708422649588,-200.0,0.00035783,3]
[314559876,1708422649598,-800.0,0.00035783,3]
[314559878,1708422649611,-200.0,0.00035783,10]
[314559880,1708422649620,-500.0,0.00035783,10]
[314559882,1708422649629,-200.0,0.00035783,10]
[314559884,1708422649639,-160.78,0.00035789,2]
[314559886,1708422649649,-162.34205228,0.0003579,2]
[314559888,1708422649658,-2151.35421706,0.0003579,2]
[314559890,1708422649667,-3125.45434466,0.0003579,2]
[314559892,1708422649676,-217.90831909,0.0003579,2]
[314559894,1708422649686,-10436.02265598,0.0003579,2]
[314559896,1708422649695,-777.26387438,0.0003579,2]
[314559898,1708422649704,-295.95403472,0.0003579,2]
[314559900,1708422649713,-165.73906841,0.0003579,2]
[314559902,1708422649722,-607.88508001,0.00035798,4]
[314559904,1708422649733,-156.1180249,0.00035798,4]
[314559906,1708422649743,-925.27,0.00035798,2]
[314559908,1708422649752,-155.34958463,0.00035799,4]
[314559910,1708422649761,-1000.0,0.00035799,2]
[314559912,1708422649770,-374.70754577,0.00035799,30]
[314559914,1708422649779,-300.0,0.00035799,2]
[314559916,1708422649788,-300.0,0.00035799,2]
[314559918,1708422649798,-300.0,0.00035799,2]
[314559920,1708422649808,-300.0,0.00035799,2]
[314559922,1708422649819,-422.08920151,0.00035799,2]
[314559924,1708422649829,-263140.29887315,0.000358,2]
[314559928,1708422649867,-1089.6345835,0.000358,2]
[314559931,1708422649878,-1352.63328257,0.000358,2]
[314559934,1708422649897,-308.33112527,0.000358,2]
[314559936,1708422649907,-1557.70338898,0.000358,2]
[314559939,1708422649925,-250.95768,0.00035616,2]
[314559959,1708422650202,-249.04232,0.00035616,2]
[314559960,1708422650212,-1409.08,0.00035616,2]
[314559961,1708422650222,-8667.27768,0.000358,2]
[314559962,1708422650272,-6980.0,0.000358,2]
[314559964,1708422650308,-21260.88712285,0.000358,2]
[314559965,1708422650320,-2428.93959325,0.000358,2]
[314559966,1708422650333,-1792.80538119,0.000358,2]
[314559967,1708422650361,-11117.6620001,0.000358,2]
[314559968,1708422650374,-2485.57518975,0.000358,2]
[314559969,1708422650400,-779.29142245,0.000358,2]
[314559970,1708422650412,-266.29233462,0.000358,2]
[314559971,1708422650425,-972.34203893,0.000358,2]
[314559972,1708422650469,-3915.39565918,0.000358,2]
[314560044,1708422652074,-271.91388935,0.00034599,4]
[314560047,1708422652086,-266.26135688,0.00035615,4]
[314560049,1708422652097,-24.4563239,0.00035615,4]
[314560052,1708422652118,-135.84432874,0.00035615,4]
[314560054,1708422652129,-559.78397774,0.00035615,4]
[314560056,1708422652141,-168.58117315,0.0003569,2]
[314560059,1708422652152,-1914.69985656,0.000358,2]
[314560063,1708422652183,-918.70530403,0.000358,2]
[314560066,1708422652203,-3255.30993903,0.000358,2]
[314560069,1708422652217,-376.20684596,0.000358,2]
[314560071,1708422652232,-727.724,0.000358,2]
[314560074,1708422652251,-591.72647706,0.000358,2]
[314560077,1708422652266,-3316.01377146,0.000358,2]
[314560081,1708422652289,-906.61016729,0.000358,2]
[314560083,1708422652303,-512.46070705,0.000358,2]
[314560086,1708422652317,-7289.18159417,0.000358,2]
[314560088,1708422652330,-682.1151111,0.000358,2]
[314560091,1708422652344,-700.99399994,0.000358,2]
[314560093,1708422652359,-542.50000004,0.000358,2]
[314560096,1708422652379,-4683.32208437,0.000358,2]
[314560099,1708422652392,-333.70314074,0.000358,2]
[314560101,1708422652407,-2708.879999,0.000358,2]
[314560104,1708422652420,-970.06229309,0.000358,2]
[314560106,1708422652434,-500.0,0.000358,2]
[314560109,1708422652448,-86807.7091999,0.000358,2]
[314560112,1708422652466,-251.81021002,0.000358,2]
[314560114,1708422652480,-262.24795853,0.000358,2]
[314560117,1708422652493,-607.0,0.000358,2]
[314560120,1708422652512,-562.1110967,0.000358,2]
[314560214,1708422669974,118491.66792519,0.00023,2]
[314560215,1708422670004,118716.79904425,0.00023,2]
[314560216,1708422670048,479121.17175646,0.00023,2]
[314560221,1708422869899,818.18100011,0.000232,2]
[314560222,1708422972371,332.71485528,0.00023,2]
[314560225,1708423280778,167.81124606,0.00022,2]
[314560226,1708423300789,155.0,0.00022,2]
[314560227,1708423318777,155.0,0.00022,2]
[314560228,1708423340797,155.0,0.00022,2]
[314560229,1708423360924,299.47345426,0.00022,2]
[314560231,1708423555005,213.42,0.00020524,2]
[314560232,1708423608171,290.81934479,0.0001,2]
[314560234,1708423703419,299.99,0.00025,7]
[314560251,1708423831991,-364.74675334,0.00023504,2]
[314560252,1708423832004,-308.35278038,0.00023504,2]
[314560253,1708423832014,-226.01573624,0.00023603,2]
[314560254,1708423832026,-190.62348148,0.00023603,2]
[314560255,1708423832036,-203.22520032,0.00023604,2]
[314560256,1708423832046,-150.0,0.00023704,2]
[314560257,1708423832055,-150.0,0.00023704,2]
[314560258,1708423832065,-210.31586043,0.00023705,2]
[314560259,1708423832075,-210.31586043,0.00023705,2]
[314560260,1708423832084,-3509.03353461,0.00023705,2]
[314560261,1708423832110,-1145.62201987,0.00023705,2]
[314560262,1708423832119,-202.38162336,0.00024,2]
[314560263,1708423832129,-497.85,0.00024496,2]
[314560264,1708423832139,-161.53238619,0.00024799,2]
[314560265,1708423832150,-1729.98047547,0.00024999,2]
[314560266,1708423832162,-698.04479025,0.00024999,2]
[314560267,1708423832172,-15322.15622526,0.00024999,2]
[314560268,1708423832188,-38280.47387303,0.00024999,2]
[314560269,1708423832199,-12199.87709351,0.00024999,2]
[314560270,1708423834477,-17126.96797803,0.00024999,2]
[314560271,1708423834592,-7762.79999999,0.00024999,2]
[314560272,1708423834625,-71861.47820225,0.00024999,2]
[314560273,1708423834635,-1058.67703635,0.00025,2]
[314560274,1708423834646,-750.0,0.00025,3]
[314560276,1708423834655,-789.06,0.00025,2]
[314560278,1708423834665,-150.99,0.00025,2]
[314560279,1708423834675,-499.99,0.00025,2]
[314560280,1708423834686,-40278.03,0.00025,2]
[314560281,1708423834695,-1647.62,0.00025,2]
[314560282,1708423834705,-250.0,0.00025057,2]
[314560283,1708423834715,-232.1,0.00025057,2]
[314560284,1708423834726,-162.26289565,0.00025442,2]
[314560285,1708423834737,-1590.98,0.000255,2]
[314560286,1708423834747,-1000.0,0.0002554,2]
[314560287,1708423834757,-276.34,0.00025542,2]
[314560288,1708423834767,-382.86,0.00025542,2]
[314560289,1708423834776,-41474.47,0.00025542,2]
[314560290,1708423834786,-18439.76,0.00025583,2]
[314560291,1708423834796,-3084.84,0.00025593,2]
[314560292,1708423834806,-150.0,0.00025631,2]
[314560293,1708423834816,-161.53238618,0.0002579,2]
[314560294,1708423834826,-182.21,0.00025854,10]
[314560295,1708423834836,-2000.0,0.00025893,2]
[314560296,1708423834846,-210.0,0.00026074,2]
[314560297,1708423834857,-150.0,0.00026079,2]
[314560298,1708423834867,-2361.04789368,0.000263,2]
[314560299,1708423834877,-19792.02998091,0.000264,2]
[314560300,1708423834887,-250.0,0.00026413,2]
[314560301,1708423834897,-162.26289564,0.00026706,2]
[314560302,1708423834906,-497.85,0.00026759,2]
[314560303,1708423834916,-161.53238618,0.00026781,2]
[314560304,1708423834926,-35453.0,0.00026897,2]
[314560305,1708423834935,-182.91,0.00026924,2]
[314560306,1708423834945,-800.0,0.00027,3]
[314560307,1708423834955,-276.34,0.00027185,2]
[314560308,1708423834965,-227.39,0.00027188,2]
[314560309,1708423834974,-690.44253496,0.000272,2]
[314560310,1708423834984,-181.56,0.00027397,2]
[314560311,1708423834994,-161.53238618,0.00027772,2]
[314560312,1708423835004,-162.26289564,0.0002797,2]
[314560313,1708423835014,-201.84388405,0.0002799,2]
[314560314,1708423835024,-160569.84509465,0.00028,2]
[314560344,1708423838361,-0.07338479,0.00028,2]
[314560350,1708423838409,-6886.36833959,0.00028,2]
[314560352,1708423838421,-12802.27888039,0.00028,2]
[314560376,1708423838633,-9757.221578,0.00028,2]
[314560378,1708423838645,-3799.30299394,0.00028,2]
[314560381,1708423838673,-16950.65953777,0.00028,2]
[314560382,1708423838684,-253.89399304,0.00028,2]
[314560383,1708423838708,-169117.29729977,0.00028,2]
[314560384,1708423838719,-977.46048853,0.00028,2]
[314560385,1708423838754,-278.71017843,0.00028,2]
[314560386,1708423838766,-1359.64999998,0.00028,2]
[314560400,1708423841105,-549.59523683,0.00028,2]
[314560401,1708423841160,-299.57396,0.00028,2]
[314560402,1708423841172,-1196.35888034,0.00028,2]
[314560403,1708423841280,-2142.95365204,0.00028,2]
[314560404,1708423841292,-2727.47376045,0.00028,2]
[314560405,1708423841304,-14777.25296788,0.00028,2]
[314560406,1708423841316,-918.61647302,0.00028,2]
[314560414,1708423842871,-10350.69269973,0.00028,2]
[314560415,1708423842883,-807.59971064,0.00028,2]
[314560416,1708423842892,-155.28,0.0002807,2]
[314560417,1708423842902,-222.47688982,0.00028739,4]
[314560418,1708423842912,-161.53238618,0.00028763,2]
[314560419,1708423842922,-276.34,0.00028829,2]
[314560420,1708423842931,-850.0,0.00029,3]
[314560421,1708423842941,-497.85,0.00029023,2]
[314560422,1708423842951,-208.0,0.00029333,2]
[314560423,1708423842961,-161.53238618,0.00029754,2]
[314560424,1708423842970,-222.47688978,0.0002984,4]
[314560425,1708423842980,-150.0,0.00029903,2]
[314560426,1708423842990,-6435.8904232,0.0002996,2]
[314560427,1708423842999,-760.00650843,0.0003,2]
[314560428,1708423843008,-627.04677195,0.000301,2]
[314560429,1708423843018,-152.96,0.00030137,2]
[314560430,1708423843027,-160.4,0.00030285,2]
[314560431,1708423843036,-276.34,0.00030473,2]
[314560432,1708423843046,-161.53238618,0.00030744,2]
[314560433,1708423843055,-880.0,0.00030831,2]
[314560434,1708423843065,-222.47688978,0.00030941,5]
[314560435,1708423843074,-900.0,0.00031,3]
[314560436,1708423843134,-208.0,0.00031137,5]
[314560437,1708423843143,-497.85,0.00031287,2]
[314560438,1708423843152,-407.99,0.00031495,2]
[314560439,1708423843161,-1512.8327,0.00031702,2]
[314560440,1708423843170,-161.53238618,0.00031735,2]
[314560441,1708423843179,-22770.7981292,0.000318,2]
[314560442,1708423843188,-222.47688978,0.00032042,5]
[314560443,1708423843197,-276.34,0.00032117,2]
[314560444,1708423843207,-182.91,0.00032309,2]
[314560445,1708423843217,-161.53238618,0.00032726,2]
[314560446,1708423843226,-376.2,0.00032877,4]
[314560447,1708423843236,-208.0,0.00032941,8]
[314560448,1708423843245,-313.72544007,0.00033,4]
[314560449,1708423843256,-2354.60034659,0.00033,2]
[314560450,1708423843267,-950.0,0.00033,3]
[314560451,1708423843277,-222.47688978,0.00033144,6]
[314560452,1708423843287,-266.26135688,0.0003333,4]
[314560453,1708423843298,-497.85,0.00033551,2]
[314560454,1708423843308,-161.53238618,0.00033717,2]
[314560455,1708423843318,-276.34,0.00033761,2]
[314560456,1708423843328,-150.0,0.00034175,2]
[314560457,1708423843338,-222.47688978,0.00034245,6]
[314560459,1708423843349,-500.0,0.000345,2]
[314560460,1708423843362,-709.09,0.00034521,2]
[314560462,1708423843372,-1369.07101953,0.00034583,7]
[314560463,1708423843390,-1728.92333217,0.00034583,7]
[314560464,1708423843398,-8891.67134409,0.000346,2]
[314560465,1708423843526,-109315.77741271,0.000346,2]
[314560466,1708423843554,-126792.5512432,0.000346,2]
[314560467,1708423843563,-154.23974412,0.000346,2]
[314560468,1708423843573,-880.0,0.00034685,2]
[314560469,1708423843582,-4628.17635638,0.000347,12]
[314560470,1708423843597,-12871.82364362,0.000347,12]
[314560471,1708423843609,-18193.0,0.000347,2]
[314560472,1708423843618,-161.53238618,0.00034708,2]
[314560473,1708423843627,-3097.99435163,0.00034743,7]
[314560474,1708423843636,-208.0,0.00034745,12]
[314560475,1708423843645,-150.0,0.00034747,2]
[314560476,1708423843655,-389.0,0.00034747,2]
[314560477,1708423843664,-454.0,0.00034747,2]
[314560478,1708423843673,-2931.0,0.00034747,2]
[314560479,1708423843682,-4103.0,0.00034747,2]
[314560480,1708423843692,-354.21395786,0.00034747,2]
[314560481,1708423843704,-7819.78604214,0.00034747,2]
[314560482,1708423843713,-2292.0,0.00034747,2]
[314560483,1708423843722,-7427.0,0.00034747,2]
[314560484,1708423843731,-2903.93051461,0.00034747,2]
[314560485,1708423845957,-202.38162336,0.00027999,2]
[314560486,1708423845967,-2732.06948539,0.00034747,2]
[314560487,1708423845977,-11142.80709793,0.00034747,2]
[314560488,1708423846127,-375.49545442,0.00034747,2]
[314560489,1708423846241,-5993.3732317,0.00034747,2]
[314560535,1708424951136,-764.45430584,0.00024997,2]
[314560536,1708424951156,-202.38162336,0.00024998,2]
[314560537,1708424951175,-416.63921772,0.00024998,2]
[314560538,1708424951197,-624.91044193,0.00024999,2]
[314560539,1708424951218,-750.0,0.00025,3]
[314560540,1708424951238,-479.01122374,0.000255,2]
[314560541,1708424951258,-510.16,0.0002552,2]
[314560542,1708424951278,-211.81,0.00026112,2]
[314560543,1708424951299,-250.0,0.00026142,2]
[314560544,1708424951321,-2000.0,0.00026182,2]
[314560545,1708424951341,-347.6,0.00026249,2]
[314560546,1708424951364,-200.0,0.00026276,2]
[314560547,1708424951383,-500.0,0.00026283,2]
[314560548,1708424951404,-208.0,0.00026333,2]
[314560549,1708424951426,-150.0,0.00026811,2]
[314560550,1708424951446,-396.72,0.00026851,2]
[314560551,1708424951534,-819.27,0.00026861,2]
[314560552,1708424951556,-150.0,0.00026913,2]
[314560553,1708424951580,-593.27,0.00026914,2]
[314560554,1708424951598,-645.77,0.00026914,2]
[314560555,1708424951619,-499.99,0.00026914,2]
[314560556,1708424951638,-150.99,0.00026914,2]
[314560557,1708424951662,-396.72,0.00026925,2]
[314560558,1708424951684,-500.0,0.00026946,2]
[314560559,1708424951704,-13612.7044,0.00026983,2]
[314560560,1708424951724,-396.72,0.00026999,2]
[314560561,1708424951744,-500.0,0.00027,2]
[314560562,1708424951766,-800.0,0.00027,3]
[314560563,1708424951786,-150.0,0.00027,2]
[314560564,1708424951811,-396.72,0.00027072,2]
[314560565,1708424951832,-155.0,0.00027081,2]
[314560566,1708424951852,-23900.0,0.00027083,2]
[314560567,1708424951872,-396.72,0.00027146,2]
[314560568,1708424951894,-396.72,0.0002722,2]
[314560569,1708424951916,-154.05,0.00027282,2]
[314560570,1708424951936,-396.72,0.00027293,2]
[314560571,1708424951969,-396.72,0.00027367,2]
[314560572,1708424951989,-396.72,0.00027441,2]
[314560573,1708424952009,-211.8,0.00027488,2]
[314560574,1708424952030,-154.05,0.00027509,2]
[314560575,1708424952050,-396.72,0.00027514,2]
[314560576,1708424952069,-396.72,0.00027588,2]
[314560577,1708424952090,-396.72,0.00027662,2]
[314560578,1708424952109,-77993.1377496,0.00027682,2]
[314560603,1708425034768,-202.38162336,0.00026083,2]
[314560604,1708425034778,-764.45430584,0.00026083,2]
[314560605,1708425034787,-624.91044193,0.00026083,2]
[314560606,1708425034796,-200.0,0.00026084,2]
[314560607,1708425034805,-196.84672129,0.00027681,2]
[314560608,1708425034814,-426.80957768,0.00027682,2]
[314560609,1708425034842,-73685.05267272,0.00027682,2]
[314560610,1708425034851,-1325.81,0.00027724,2]
[314560611,1708425034861,-21431.51,0.00027724,2]
[314560612,1708425034870,-396.72,0.00027735,2]
[314560613,1708425034879,-154.05,0.00027736,2]
[314560614,1708425034888,-12173.35597756,0.00027774,2]
[314560615,1708425034898,-510.16,0.00027784,2]
[314560616,1708425034907,-396.72,0.00027809,2]
[314560617,1708425034916,-691.95,0.00027883,2]
[314560618,1708425034925,-396.72,0.00027883,2]
[314560619,1708425034935,-396.72,0.00027956,2]
[314560620,1708425034945,-154.05,0.00027964,2]
[314560621,1708425034954,-1451.78,0.00027965,2]
[314560622,1708425034963,-1472.86,0.0002798,2]
[314560623,1708425034972,-1475.27,0.00027998,2]
[314560624,1708425034981,-1421.21,0.00027999,2]
[314560625,1708425034993,-1462.26,0.00028,2]
[314560626,1708425035002,-23808.43,0.00028,2]
[314560627,1708425035011,-3109.1,0.00028,2]
[314560628,1708425035021,-1434.62,0.00028,2]
[314560629,1708425035030,-1470.56,0.00028,2]
[314560630,1708425035040,-500.0,0.00028,2]
[314560631,1708425035049,-396.72,0.0002803,2]
[314560632,1708425035059,-396.72,0.00028103,2]
[314560633,1708425035069,-949.4,0.00028116,2]
[314560634,1708425035079,-250.0,0.0002814,2]
[314560635,1708425035088,-396.72,0.00028177,2]
[314560636,1708425035098,-154.05,0.00028191,2]
[314560637,1708425035107,-396.72,0.00028251,2]
[314560639,1708425035117,-208.0,0.00028314,5]
[314560640,1708425035127,-154.05,0.00028418,2]
[314560641,1708425035137,-819.27,0.00028504,2]
[314560642,1708425035147,-154.05,0.00028646,2]
[314560643,1708425035157,-154.05,0.00028873,2]
[314560644,1708425035167,-850.0,0.00029,3]
[314560645,1708425035177,-154.05,0.000291,2]
[314560646,1708425035186,-154.05,0.00029328,2]
[314560647,1708425035196,-176.18,0.00029386,2]
[314560648,1708425035205,-1026.31096852,0.00029481,2]
[314560649,1708425035215,-1000.0,0.00029484,2]
[314560650,1708425035224,-154.05,0.00029555,2]
[314560651,1708425035234,-154.05,0.00029782,2]
[314560652,1708425035478,-181.76442314,0.0002991,4]
[314560653,1708425035489,-166.02,0.00029976,2]
[314560654,1708425035499,-523.42453954,0.00029999,2]
[314560655,1708425035508,-75303.49901708,0.0003,2]
[314560656,1708425035534,-58307.02106811,0.0003,2]
[314560657,1708425035557,-302073.12721017,0.0003,2]
[314560658,1708425035566,-154.05,0.0003001,2]
[314560659,1708425035576,-510.16,0.00030048,2]
[314560660,1708425035586,-819.27,0.00030148,2]
[314560661,1708425035598,-208.0,0.00030294,8]
[314560662,1708425035614,-176.18,0.00030425,2]
[314560663,1708425035623,-181.76442307,0.00030828,5]
[314560664,1708425035633,-900.0,0.00031,3]
[314560665,1708425035642,-211.81,0.00031334,2]
[314560666,1708425035652,-176.18,0.00031465,2]
[314560667,1708425035662,-773.77122926,0.00031737,2]
[314560668,1708425035671,-181.76442307,0.00031747,5]
[314560669,1708425035680,-819.27,0.00031792,2]
[314560670,1708425035690,-74887.9238303,0.000318,2]
[314560671,1708425035702,-208.0,0.00032275,12]
[314560672,1708425035711,-510.16,0.00032312,2]
[314560673,1708425035720,-150.0,0.00032468,2]
[314560674,1708425035730,-176.18,0.00032504,2]
[314560675,1708425035740,-1122.87,0.00032606,2]
[314560676,1708425035749,-181.76442307,0.00032665,6]
[314560677,1708425035758,-1122.87,0.00032778,2]
[314560678,1708425035768,-277.0,0.000328,2]
[314560679,1708425035777,-150.0,0.0003283,2]
[314560680,1708425035787,-150.0,0.00032948,2]
[314560681,1708425035797,-1122.87,0.00032949,2]
[314560682,1708425035807,-211.8,0.00032986,2]
[314560683,1708425035816,-950.0,0.00033,3]
[314560684,1708425035826,-1122.87,0.00033121,2]
[314560685,1708425035836,-1000.0,0.0003317,2]
[314560686,1708425035845,-150.0,0.00033231,2]
[314560687,1708425035854,-1122.87,0.00033292,2]
[314560688,1708425035864,-2424.64722219,0.00033394,2]
[314560689,1708425035874,-2424.64722219,0.00033394,2]
[314560690,1708425035883,-819.27,0.00033436,2]
[314560691,1708425035892,-1122.87,0.00033464,2]
[314560692,1708425035901,-176.18,0.00033543,2]
[314560693,1708425035911,-181.76442307,0.00033583,6]
[314560694,1708425035920,-1122.87,0.00033636,2]
[314560695,1708425035930,-289.07433171,0.00033752,2]
[314560696,1708425035939,-150.0,0.00033758,2]
[314560697,1708425035948,-155.0,0.000338,2]
[314560698,1708425035957,-177.58,0.000338,2]
[314560699,1708425035966,-1122.87,0.00033807,2]
[314560700,1708425035975,-1122.87,0.00033979,2]
[314560701,1708425035984,-60587.94226487,0.00034,2]
[314560702,1708425035995,-150.0,0.00034,2]
[314560703,1708425036005,-1500.0,0.000341,2]
[314560704,1708425036014,-150.0,0.00034131,2]
[314560705,1708425036024,-1122.87,0.00034151,2]
[314560706,1708425036033,-453.24155066,0.00034222,2]
[314560707,1708425036043,-208.0,0.00034255,15]
[314560708,1708425036052,-1365.49375385,0.00034288,2]
[314560709,1708425036061,-1122.87,0.00034322,2]
[314560710,1708425036071,-177.58,0.00034348,2]
[314560711,1708425036080,-164.5,0.00034398,2]
[314560712,1708425036089,-2836.0,0.000344,2]
[314560713,1708425036099,-16089.431789,0.000344,2]
[314560714,1708425036109,-1157.4035228,0.00034439,2]
[314560715,1708425036119,-308.9239793,0.0003448,2]
[314560716,1708425036130,-1122.87,0.00034494,2]
[314560717,1708425036140,-150.6238046,0.000345,2]
[314560718,1708425036150,-12541.73,0.000345,2]
[314560719,1708425036159,-181.76442307,0.00034501,7]
[314560720,1708425036170,-1806.428262,0.0003452,2]
[314560721,1708425036179,-2709.642393,0.0003452,2]
[314560722,1708425036190,-1158.83,0.00034521,2]
[314560723,1708425036200,-412.6,0.00034521,2]
[314560724,1708425036210,-412.6,0.00034521,2]
[314560725,1708425036220,-412.6,0.00034521,2]
[314560726,1708425036230,-150.0,0.00034548,2]
[314560727,1708425036243,-510.16,0.00034576,2]
[314560728,1708425036252,-1500.0,0.00034577,2]
[314560729,1708425036262,-176.18,0.00034583,2]
[314560730,1708425036271,-453.24155063,0.00034642,2]
[314560731,1708425036281,-232.41,0.00034643,2]
[314560732,1708425036290,-188.19652486,0.00034647,7]
[314560733,1708425036299,-174.10377238,0.00034647,2]
[314560734,1708425036308,-154.17279719,0.00034647,2]
[314560735,1708425036317,-300.0,0.00034654,2]
[314560736,1708425036326,-1122.87,0.00034665,2]
[314560737,1708425036336,-502.76880153,0.000347,2]
[314560738,1708425036346,-108369.16891472,0.00034746,2]
[314560739,1708425036357,-470.73447382,0.00034747,4]
[314560740,1708425036366,-2000.0,0.00034747,2]
[314560741,1708425036376,-200.0,0.00034747,2]
[314560742,1708425036386,-2000.0,0.00034747,2]
[314560743,1708425036396,-200.0,0.00034747,2]
[314560744,1708425036407,-789.23028593,0.00034747,7]
[314560745,1708425036417,-2000.0,0.00034747,2]
[314560746,1708425036427,-200.0,0.00034747,2]
[314560747,1708425036437,-3000.0,0.00034747,2]
[314560748,1708425036447,-200.0,0.00034747,2]
[314560749,1708425036457,-2709.642393,0.00034794,2]
[314560750,1708425036467,-4064.46359,0.00034794,2]
[314560751,1708425036477,-1500.0,0.00034815,2]
[314560752,1708425036486,-300.0,0.00034835,2]
[314560753,1708425036499,-1122.87,0.00034837,2]
[314560754,1708425036508,-1500.0,0.00034865,2]
[314560755,1708425036517,-177.58,0.00034896,2]
[314560756,1708425036527,-5000.0,0.000349,3]
[314560757,1708425036537,-570.1291895,0.000349,3]
[314560758,1708425036547,-316547.111283,0.000349,2]
[314560759,1708425036556,-331387.81344997,0.000349,2]
[314560760,1708425036566,-1507.39158291,0.000349,2]
[314560761,1708425036576,-1507.3915829,0.000349,2]
[314560762,1708425036586,-1507.3915829,0.000349,2]
[314560763,1708425036596,-1507.3915829,0.000349,2]
[314560764,1708425036605,-3097.99435163,0.00034902,7]
[314560765,1708425036615,-3612.856525,0.00034931,2]
[314560766,1708425036628,-5419.284787,0.00034931,2]
[314560767,1708425036638,-1157.4035228,0.00034956,2]
[314560768,1708425036648,-150.0,0.0003496,2]
[314560769,1708425036658,-1365.49375386,0.00034967,2]
[314560770,1708425036669,-100000.0,0.00035,5]
[314560771,1708425036679,-7440.23420385,0.00035,2]
[314560772,1708425036689,-701.02918323,0.00035,4]
[314560773,1708425036700,-74287.43533803,0.00035,4]
[314560774,1708425036710,-3928.75118966,0.00035,15]
[314560775,1708425036720,-1500.0,0.00035,7]
[314560776,1708425036729,-1500.0,0.00035,7]
[314560777,1708425036741,-1981.0,0.00035,7]
[314560778,1708425036751,-1400.73,0.00035,2]
[314560779,1708425036760,-759.56669409,0.00035,2]
[314560780,1708425036769,-1000.0,0.00035,3]
[314560781,1708425036779,-12587.0,0.00035,2]
[314560782,1708425036788,-4000.0,0.00035,2]
[314560783,1708425036797,-1122.87,0.00035009,2]
[314560784,1708425036806,-245.32994431,0.0003504,2]
[314560785,1708425036816,-453.24155063,0.00035061,2]
[314560786,1708425036825,-3097.99435163,0.00035062,7]